[Event "Titled Tuesday Blitz August 09 Early 2022"]
[White "Vargas, Mauricio"]
[Black "De Souza, Cristiano Gomes"]
[WhiteFideId "4404572"]
[BlackFideId "2151758"]
[WhiteElo "2004"]
[BlackElo "2068"]
[Result "0-1"]
[Round "06"]
[TimeControl "180+1"]
[Date "2022.08.09"]
[WhiteClock "0:01:50"]
[BlackClock "0:01:34"]

1. e4 {[%clk 0:02:59]}  c5 {[%clk 0:02:30]} 2. Nc3 {[%clk 0:02:57]}  d6 {[%clk 0:02:30]} 3. f4 {[%clk 0:02:58]}  a6 {[%clk 0:02:29]} 4. Nf3 {[%clk 0:02:59]}  Bg4 {[%clk 0:02:28]} 5. d3 {[%clk 0:02:58]}  Nc6 {[%clk 0:02:27]} 6. h3 {[%clk 0:02:58]}  Bxf3 {[%clk 0:02:27]} 7. Qxf3 {[%clk 0:02:59]}  Nd4 {[%clk 0:02:28]} 8. Qd1 {[%clk 0:02:59]}  g6 {[%clk 0:02:28]} 9. g4 {[%clk 0:02:57]}  Bg7 {[%clk 0:02:29]} 10. Bg2 {[%clk 0:02:57]}  e5 {[%clk 0:02:28]} 11. O-O {[%clk 0:02:56]}  exf4 {[%clk 0:02:25]} 12. Bxf4 {[%clk 0:02:56]}  Ne7 {[%clk 0:02:20]} 13. Rb1 {[%clk 0:02:45]}  O-O {[%clk 0:02:19]} 14. Ne2 {[%clk 0:02:44]}  Nxe2+ {[%clk 0:02:18]} 15. Qxe2 {[%clk 0:02:43]}  Nc6 {[%clk 0:02:19]} 16. c3 {[%clk 0:02:43]}  Qd7 {[%clk 0:02:14]} 17. Qe3 {[%clk 0:02:43]}  Rae8 {[%clk 0:02:13]} 18. Qd2 {[%clk 0:02:38]}  b5 {[%clk 0:02:11]} 19. Rbe1 {[%clk 0:02:32]}  Ne5 {[%clk 0:02:09]} 20. d4 {[%clk 0:02:23]}  Nc4 {[%clk 0:02:08]} 21. Qc1 {[%clk 0:02:22]}  cxd4 {[%clk 0:02:08]} 22. b3 {[%clk 0:02:20]}  Ne3 {[%clk 0:01:51]} 23. Rf3 {[%clk 0:02:11]}  Rxe4 {[%clk 0:01:46]} 24. cxd4 {[%clk 0:02:09]}  Rxf4 {[%clk 0:01:40]} 25. Rxf4 {[%clk 0:01:59]}  Nxg2 {[%clk 0:01:40]} 26. Kxg2 {[%clk 0:01:59]}  Bh6 {[%clk 0:01:41]} 27. Rxf7 {[%clk 0:01:53]}  Qxf7 {[%clk 0:01:37]} 28. Qxh6 {[%clk 0:01:52]}  Qf2+ {[%clk 0:01:36]} 29. Kh1 {[%clk 0:01:50]}  Qxe1+ {[%clk 0:01:36]} 30. Kg2 {[%clk 0:01:50]}  Qf1+ {[%clk 0:01:34]} 31. Kg3 {[%clk 0:01:50]}  Qf2# {[%clk 0:01:34]} 0-1


[Site "https://www.chess.com"]

[Event "Titled Tuesday Blitz August 09 Early 2022"]
[White "White, John S."]
[Black "Matveeva, Olga"]
[WhiteFideId "2502348"]
[BlackFideId "24107018"]
[WhiteElo "1580"]
[BlackElo "2052"]
[Result "1-0"]
[Round "06"]
[TimeControl "180+1"]
[Date "2022.08.09"]
[WhiteClock "0:00:15"]
[BlackClock "0:00:14"]

1. e4 {[%clk 0:02:58]}  e6 {[%clk 0:03:00]} 2. d3 {[%clk 0:02:57]}  d5 {[%clk 0:03:01]} 3. Nd2 {[%clk 0:02:56]}  Nf6 {[%clk 0:03:01]} 4. Ngf3 {[%clk 0:02:56]}  c5 {[%clk 0:03:00]} 5. g3 {[%clk 0:02:55]}  Nc6 {[%clk 0:03:01]} 6. Bg2 {[%clk 0:02:54]}  Be7 {[%clk 0:03:01]} 7. O-O {[%clk 0:02:54]}  O-O {[%clk 0:03:01]} 8. Re1 {[%clk 0:02:53]}  b5 {[%clk 0:03:01]} 9. e5 {[%clk 0:02:52]}  Nd7 {[%clk 0:03:01]} 10. Nf1 {[%clk 0:02:48]}  a5 {[%clk 0:03:00]} 11. Bf4 {[%clk 0:02:47]}  b4 {[%clk 0:02:59]} 12. h4 {[%clk 0:02:45]}  a4 {[%clk 0:02:58]} 13. a3 {[%clk 0:02:44]}  bxa3 {[%clk 0:02:57]} 14. bxa3 {[%clk 0:02:43]}  Rb8 {[%clk 0:02:53]} 15. N1h2 {[%clk 0:02:42]}  Ba6 {[%clk 0:02:51]} 16. h5 {[%clk 0:02:40]}  h6 {[%clk 0:02:44]} 17. Ng4 {[%clk 0:02:39]}  Re8 {[%clk 0:02:29]} 18. Qd2 {[%clk 0:02:38]}  Nd4 {[%clk 0:02:22]} 19. Nxd4 {[%clk 0:02:11]}  cxd4 {[%clk 0:02:23]} 20. Bxh6 {[%clk 0:01:50]}  gxh6 {[%clk 0:02:20]} 21. Qxh6 {[%clk 0:01:46]}  Bg5 {[%clk 0:02:03]} 22. Nf6+ {[%clk 0:01:44]}  Bxf6 {[%clk 0:02:01]} 23. exf6 {[%clk 0:01:40]}  Qxf6 {[%clk 0:02:02]} 24. Qd2 {[%clk 0:01:32]}  Rb2 {[%clk 0:01:55]} 25. Bxd5 {[%clk 0:01:20]}  Rc8 {[%clk 0:01:50]} 26. Bxe6 {[%clk 0:00:42]}  fxe6 {[%clk 0:01:48]} 27. Rxe6 {[%clk 0:00:37]}  Qxe6 {[%clk 0:01:47]} 28. Qg5+ {[%clk 0:00:36]}  Kf7 {[%clk 0:01:45]} 29. h6 {[%clk 0:00:32]}  Qf6 {[%clk 0:01:31]} 30. Qd5+ {[%clk 0:00:31]}  Qe6 {[%clk 0:01:17]} 31. Qxd4 {[%clk 0:00:26]}  Rbxc2 {[%clk 0:01:07]} 32. Qg7+ {[%clk 0:00:24]}  Ke8 {[%clk 0:01:02]} 33. h7 {[%clk 0:00:23]}  Rc1+ {[%clk 0:00:57]} 34. Rxc1 {[%clk 0:00:21]}  Rxc1+ {[%clk 0:00:58]} 35. Kh2 {[%clk 0:00:17]}  Bb7 {[%clk 0:00:14]} 36. h8=Q+ {[%clk 0:00:16]}  Nf8 {[%clk 0:00:14]} 37. Qhxf8# {[%clk 0:00:15]} 1-0


[Site "https://www.chess.com"]

[Event "Titled Tuesday Blitz August 09 Early 2022"]
[White "Zenin, Dmitry"]
[Black "Jiganchine, Roman"]
[WhiteFideId "4127897"]
[BlackFideId "2603667"]
[WhiteElo "2215"]
[BlackElo "2302"]
[Result "1-0"]
[Round "06"]
[TimeControl "180+1"]
[Date "2022.08.09"]
[WhiteClock "0:00:17"]
[BlackClock "0:00:01"]

1. c4 {[%clk 0:03:00]}  e6 {[%clk 0:02:57]} 2. Nc3 {[%clk 0:03:00]}  d5 {[%clk 0:02:57]} 3. d4 {[%clk 0:03:00]}  Nf6 {[%clk 0:02:57]} 4. cxd5 {[%clk 0:03:00]}  exd5 {[%clk 0:02:57]} 5. Bg5 {[%clk 0:03:00]}  c6 {[%clk 0:02:51]} 6. e3 {[%clk 0:03:00]}  Bf5 {[%clk 0:02:51]} 7. Qf3 {[%clk 0:02:59]}  Bg6 {[%clk 0:02:52]} 8. Bxf6 {[%clk 0:02:57]}  Qxf6 {[%clk 0:02:52]} 9. Qxf6 {[%clk 0:02:57]}  gxf6 {[%clk 0:02:53]} 10. Nf3 {[%clk 0:02:55]}  Nd7 {[%clk 0:02:48]} 11. Nh4 {[%clk 0:02:50]}  a5 {[%clk 0:02:41]} 12. g3 {[%clk 0:02:50]}  Be7 {[%clk 0:02:12]} 13. Bh3 {[%clk 0:02:49]}  Nb6 {[%clk 0:02:01]} 14. Ke2 {[%clk 0:02:38]}  Nc4 {[%clk 0:02:00]} 15. b3 {[%clk 0:02:35]}  Nd6 {[%clk 0:01:59]} 16. f4 {[%clk 0:02:21]}  Be4 {[%clk 0:01:58]} 17. Nxe4 {[%clk 0:02:18]}  Nxe4 {[%clk 0:01:57]} 18. Bf5 {[%clk 0:02:04]}  Nd6 {[%clk 0:01:53]} 19. Bd3 {[%clk 0:02:03]}  Kd7 {[%clk 0:01:48]} 20. a4 {[%clk 0:02:00]}  h6 {[%clk 0:01:26]} 21. Kf3 {[%clk 0:01:53]}  Rhb8 {[%clk 0:01:24]} 22. Rhc1 {[%clk 0:01:45]}  b5 {[%clk 0:01:15]} 23. axb5 {[%clk 0:01:43]}  cxb5 {[%clk 0:01:13]} 24. Rc5 {[%clk 0:01:42]}  a4 {[%clk 0:00:59]} 25. bxa4 {[%clk 0:01:35]}  bxa4 {[%clk 0:00:59]} 26. Rxd5 {[%clk 0:01:35]}  Ke6 {[%clk 0:00:49]} 27. Rc5 {[%clk 0:01:20]}  Rb3 {[%clk 0:00:48]} 28. Bc2 {[%clk 0:01:17]}  Rb4 {[%clk 0:00:37]} 29. Rc7 {[%clk 0:01:16]}  Bd8 {[%clk 0:00:26]} 30. Rc6 {[%clk 0:00:48]}  Kd7 {[%clk 0:00:25]} 31. Rc5 {[%clk 0:00:47]}  Bb6 {[%clk 0:00:25]} 32. Rd5 {[%clk 0:00:45]}  Kc6 {[%clk 0:00:20]} 33. Rh5 {[%clk 0:00:42]}  a3 {[%clk 0:00:19]} 34. Nf5 {[%clk 0:00:40]}  Rb2 {[%clk 0:00:15]} 35. Bd3 {[%clk 0:00:36]}  Nxf5 {[%clk 0:00:11]} 36. Rxf5 {[%clk 0:00:36]}  Ra7 {[%clk 0:00:05]} 37. Rxf6+ {[%clk 0:00:35]}  Kc7 {[%clk 0:00:06]} 38. Rxf7+ {[%clk 0:00:35]}  Kd6 {[%clk 0:00:05]} 39. Rxa7 {[%clk 0:00:35]}  Bxa7 {[%clk 0:00:05]} 40. Rxa3 {[%clk 0:00:35]}  Bb6 {[%clk 0:00:04]} 41. Ra8 {[%clk 0:00:32]}  Rxh2 {[%clk 0:00:03]} 42. Rg8 {[%clk 0:00:28]}  Bc7 {[%clk 0:00:03]} 43. Rg6+ {[%clk 0:00:27]}  Kd7 {[%clk 0:00:03]} 44. e4 {[%clk 0:00:26]}  Bd8 {[%clk 0:00:03]} 45. e5 {[%clk 0:00:25]}  Ke7 {[%clk 0:00:03]} 46. d5 {[%clk 0:00:24]}  h5 {[%clk 0:00:03]} 47. d6+ {[%clk 0:00:22]}  Kf7 {[%clk 0:00:02]} 48. Rh6 {[%clk 0:00:22]}  Bb6 {[%clk 0:00:01]} 49. Rh7+ {[%clk 0:00:18]}  Kg8 {[%clk 0:00:01]} 50. Re7 {[%clk 0:00:17]} 1-0


[Site "https://www.chess.com"]

[Event "Titled Tuesday Blitz August 09 Early 2022"]
[White "Ziatdinov, Raset"]
[Black "Mikhalsky, Vladimir"]
[WhiteFideId "2015323"]
[BlackFideId "14144352"]
[WhiteElo "2220"]
[BlackElo "2301"]
[Result "1-0"]
[Round "06"]
[TimeControl "180+1"]
[Date "2022.08.09"]
[WhiteClock "0:00:13"]
[BlackClock "0:00:13"]

1. e4 {[%clk 0:03:00]}  g6 {[%clk 0:02:52]} 2. d4 {[%clk 0:03:00]}  Bg7 {[%clk 0:02:51]} 3. Nc3 {[%clk 0:03:01]}  d6 {[%clk 0:02:46]} 4. Nf3 {[%clk 0:03:01]}  Nf6 {[%clk 0:02:46]} 5. Bd3 {[%clk 0:03:01]}  O-O {[%clk 0:02:46]} 6. O-O {[%clk 0:03:01]}  Bg4 {[%clk 0:02:43]} 7. h3 {[%clk 0:02:59]}  Bxf3 {[%clk 0:02:43]} 8. Qxf3 {[%clk 0:03:00]}  Nc6 {[%clk 0:02:43]} 9. Be3 {[%clk 0:02:58]}  a6 {[%clk 0:02:40]} 10. Rad1 {[%clk 0:02:57]}  e5 {[%clk 0:02:39]} 11. d5 {[%clk 0:02:56]}  Nd4 {[%clk 0:02:37]} 12. Bxd4 {[%clk 0:02:54]}  exd4 {[%clk 0:02:37]} 13. Ne2 {[%clk 0:02:55]}  Nd7 {[%clk 0:02:35]} 14. Qg3 {[%clk 0:02:51]}  Re8 {[%clk 0:02:25]} 15. f4 {[%clk 0:02:48]}  Nc5 {[%clk 0:02:24]} 16. Qf3 {[%clk 0:02:47]}  Qe7 {[%clk 0:02:22]} 17. Ng3 {[%clk 0:02:46]}  Na4 {[%clk 0:02:10]} 18. f5 {[%clk 0:02:33]}  Be5 {[%clk 0:02:00]} 19. f6 {[%clk 0:02:23]}  Qd7 {[%clk 0:01:53]} 20. b3 {[%clk 0:01:49]}  Nc3 {[%clk 0:01:47]} 21. Rde1 {[%clk 0:01:49]}  b5 {[%clk 0:01:38]} 22. Ne2 {[%clk 0:01:40]}  c5 {[%clk 0:01:26]} 23. Nf4 {[%clk 0:01:29]}  Kh8 {[%clk 0:01:17]} 24. Ne2 {[%clk 0:01:26]}  Rac8 {[%clk 0:01:07]} 25. Nxc3 {[%clk 0:01:25]}  dxc3 {[%clk 0:01:07]} 26. Kh1 {[%clk 0:01:11]}  h5 {[%clk 0:01:04]} 27. Qe3 {[%clk 0:01:11]}  Kh7 {[%clk 0:01:04]} 28. Qg5 {[%clk 0:01:08]}  Bd4 {[%clk 0:00:56]} 29. Rf4 {[%clk 0:01:02]}  Re5 {[%clk 0:00:53]} 30. Qh4 {[%clk 0:00:58]}  Kg8 {[%clk 0:00:44]} 31. Qg3 {[%clk 0:00:46]}  Rce8 {[%clk 0:00:41]} 32. Ref1 {[%clk 0:00:45]}  Kh7 {[%clk 0:00:34]} 33. Rf5 {[%clk 0:00:39]}  Rg8 {[%clk 0:00:29]} 34. Rxe5 {[%clk 0:00:39]}  Bxe5 {[%clk 0:00:28]} 35. Qf3 {[%clk 0:00:36]}  Qd8 {[%clk 0:00:28]} 36. a4 {[%clk 0:00:34]}  c4 {[%clk 0:00:28]} 37. bxc4 {[%clk 0:00:34]}  bxa4 {[%clk 0:00:28]} 38. g4 {[%clk 0:00:30]}  Rh8 {[%clk 0:00:26]} 39. gxh5 {[%clk 0:00:25]}  g5 {[%clk 0:00:24]} 40. Qf5+ {[%clk 0:00:22]}  Kh6 {[%clk 0:00:24]} 41. Rg1 {[%clk 0:00:22]}  Qxf6 {[%clk 0:00:23]} 42. Qxf6+ {[%clk 0:00:20]}  Bxf6 {[%clk 0:00:23]} 43. Be2 {[%clk 0:00:20]}  Be5 {[%clk 0:00:23]} 44. Ra1 {[%clk 0:00:21]}  Rb8 {[%clk 0:00:22]} 45. Kg2 {[%clk 0:00:18]}  Rb2 {[%clk 0:00:21]} 46. Bd3 {[%clk 0:00:18]}  Rb4 {[%clk 0:00:20]} 47. Ra3 {[%clk 0:00:17]}  Kxh5 {[%clk 0:00:20]} 48. Kf3 {[%clk 0:00:16]}  Kg6 {[%clk 0:00:20]} 49. Kg4 {[%clk 0:00:17]}  f6 {[%clk 0:00:20]} 50. Ra1 {[%clk 0:00:15]}  a5 {[%clk 0:00:20]} 51. Ra2 {[%clk 0:00:15]}  Bd4 {[%clk 0:00:21]} 52. Ra1 {[%clk 0:00:15]}  Bc5 {[%clk 0:00:21]} 53. Ra2 {[%clk 0:00:16]}  Rb1 {[%clk 0:00:20]} 54. Rxa4 {[%clk 0:00:16]}  Rg1+ {[%clk 0:00:21]} 55. Kf3 {[%clk 0:00:16]}  Rh1 {[%clk 0:00:21]} 56. Kg2 {[%clk 0:00:16]}  Rg1+ {[%clk 0:00:21]} 57. Kh2 {[%clk 0:00:17]}  Re1 {[%clk 0:00:20]} 58. Rxa5 {[%clk 0:00:17]}  Rd1 {[%clk 0:00:20]} 59. e5+ {[%clk 0:00:17]}  Kg7 {[%clk 0:00:17]} 60. exd6 {[%clk 0:00:15]}  Bxd6+ {[%clk 0:00:17]} 61. Kg2 {[%clk 0:00:16]}  Bf4 {[%clk 0:00:17]} 62. Ra7+ {[%clk 0:00:16]}  Kf8 {[%clk 0:00:16]} 63. Ra2 {[%clk 0:00:14]}  Ke7 {[%clk 0:00:16]} 64. Kf3 {[%clk 0:00:14]}  Kd6 {[%clk 0:00:16]} 65. Kg4 {[%clk 0:00:15]}  Rg1+ {[%clk 0:00:15]} 66. Kf5 {[%clk 0:00:15]}  Rf1 {[%clk 0:00:15]} 67. Bxf1 {[%clk 0:00:15]}  Kc5 {[%clk 0:00:15]} 68. Ra5+ {[%clk 0:00:15]}  Kb4 {[%clk 0:00:15]} 69. Rb5+ {[%clk 0:00:15]}  Ka4 {[%clk 0:00:15]} 70. c5 {[%clk 0:00:13]}  Be5 {[%clk 0:00:14]} 71. c6 {[%clk 0:00:13]}  Bd6 {[%clk 0:00:13]} 72. Ke6 {[%clk 0:00:13]}  Be5 {[%clk 0:00:13]} 73. d6 {[%clk 0:00:13]} 1-0


[Site "https://www.chess.com"]

[Event "Titled Tuesday Blitz August 09 Early 2022"]
[White "Al-Tarboush, Ward"]
[Black "Estrada Nieto, Julian"]
[WhiteFideId "7601450"]
[BlackFideId "5101018"]
[WhiteElo "2234"]
[BlackElo "2252"]
[Result "1-0"]
[Round "07"]
[TimeControl "180+1"]
[Date "2022.08.09"]
[WhiteClock "0:00:42"]
[BlackClock "0:00:03"]

1. e4 {[%clk 0:02:52]}  e5 {[%clk 0:02:59]} 2. Nf3 {[%clk 0:02:51]}  Nc6 {[%clk 0:02:59]} 3. Bb5 {[%clk 0:02:50]}  a6 {[%clk 0:02:59]} 4. Ba4 {[%clk 0:02:51]}  Nf6 {[%clk 0:02:59]} 5. O-O {[%clk 0:02:51]}  Be7 {[%clk 0:02:59]} 6. Re1 {[%clk 0:02:51]}  b5 {[%clk 0:03:00]} 7. Bb3 {[%clk 0:02:51]}  d6 {[%clk 0:03:01]} 8. c3 {[%clk 0:02:50]}  O-O {[%clk 0:03:00]} 9. d4 {[%clk 0:02:51]}  Bg4 {[%clk 0:03:00]} 10. Be3 {[%clk 0:02:50]}  exd4 {[%clk 0:02:57]} 11. cxd4 {[%clk 0:02:49]}  Na5 {[%clk 0:02:58]} 12. Bc2 {[%clk 0:02:49]}  c5 {[%clk 0:02:55]} 13. Nc3 {[%clk 0:02:48]}  Nc4 {[%clk 0:02:40]} 14. Nd5 {[%clk 0:02:47]}  Nxd5 {[%clk 0:02:26]} 15. exd5 {[%clk 0:02:48]}  Nxe3 {[%clk 0:02:17]} 16. fxe3 {[%clk 0:02:47]}  cxd4 {[%clk 0:02:03]} 17. Qxd4 {[%clk 0:02:48]}  Bxf3 {[%clk 0:02:02]} 18. gxf3 {[%clk 0:02:48]}  Bf6 {[%clk 0:02:01]} 19. Qd3 {[%clk 0:02:49]}  g6 {[%clk 0:02:00]} 20. Rab1 {[%clk 0:02:49]}  Rc8 {[%clk 0:01:55]} 21. Re2 {[%clk 0:02:45]}  Re8 {[%clk 0:01:54]} 22. f4 {[%clk 0:02:43]}  Bg7 {[%clk 0:01:47]} 23. Kg2 {[%clk 0:02:41]}  Qh4 {[%clk 0:01:46]} 24. Rf1 {[%clk 0:02:38]}  Bxb2 {[%clk 0:01:38]} 25. Rf3 {[%clk 0:02:36]}  Rc3 {[%clk 0:01:30]} 26. Qd1 {[%clk 0:02:30]}  Rec8 {[%clk 0:01:05]} 27. Rg3 {[%clk 0:00:38]}  Kg7 {[%clk 0:00:45]} 28. Bb3 {[%clk 0:00:38]}  Rc1 {[%clk 0:00:35]} 29. Qd3 {[%clk 0:00:37]}  Qf6 {[%clk 0:00:29]} 30. Qd2 {[%clk 0:00:36]}  R1c3 {[%clk 0:00:17]} 31. Qxb2 {[%clk 0:00:36]}  a5 {[%clk 0:00:15]} 32. Bd1 {[%clk 0:00:32]}  b4 {[%clk 0:00:14]} 33. Qd2 {[%clk 0:00:32]}  a4 {[%clk 0:00:13]} 34. Qd4 {[%clk 0:00:33]}  Qxd4 {[%clk 0:00:12]} 35. exd4 {[%clk 0:00:34]}  b3 {[%clk 0:00:12]} 36. Rxc3 {[%clk 0:00:33]}  Rxc3 {[%clk 0:00:11]} 37. axb3 {[%clk 0:00:34]}  axb3 {[%clk 0:00:11]} 38. Rb2 {[%clk 0:00:35]}  Rd3 {[%clk 0:00:11]} 39. Bxb3 {[%clk 0:00:35]}  Rxd4 {[%clk 0:00:11]} 40. Kf3 {[%clk 0:00:35]}  Rd3+ {[%clk 0:00:11]} 41. Ke2 {[%clk 0:00:35]}  Rh3 {[%clk 0:00:10]} 42. Kd1 {[%clk 0:00:36]}  Kf6 {[%clk 0:00:10]} 43. Ba4 {[%clk 0:00:37]}  h6 {[%clk 0:00:07]} 44. Bc6 {[%clk 0:00:37]}  g5 {[%clk 0:00:07]} 45. fxg5+ {[%clk 0:00:38]}  hxg5 {[%clk 0:00:07]} 46. Rf2+ {[%clk 0:00:38]}  Ke7 {[%clk 0:00:07]} 47. Re2+ {[%clk 0:00:39]}  Kf6 {[%clk 0:00:07]} 48. Rf2+ {[%clk 0:00:40]}  Ke7 {[%clk 0:00:07]} 49. Ke2 {[%clk 0:00:40]}  f6 {[%clk 0:00:06]} 50. Rg2 {[%clk 0:00:40]}  Kf7 {[%clk 0:00:05]} 51. Bd7 {[%clk 0:00:39]}  Rh4 {[%clk 0:00:05]} 52. Be6+ {[%clk 0:00:40]}  Kg6 {[%clk 0:00:05]} 53. h3 {[%clk 0:00:40]}  Re4+ {[%clk 0:00:04]} 54. Kf3 {[%clk 0:00:41]}  f5 {[%clk 0:00:05]} 55. Bxf5+ {[%clk 0:00:35]}  Kxf5 {[%clk 0:00:05]} 56. Rxg5+ {[%clk 0:00:36]}  Kxg5 {[%clk 0:00:04]} 57. Kxe4 {[%clk 0:00:37]}  Kf6 {[%clk 0:00:01]} 58. Kf4 {[%clk 0:00:36]}  Kg6 {[%clk 0:00:02]} 59. h4 {[%clk 0:00:37]}  Kh5 {[%clk 0:00:02]} 60. Kf5 {[%clk 0:00:38]}  Kxh4 {[%clk 0:00:02]} 61. Ke6 {[%clk 0:00:38]}  Kg5 {[%clk 0:00:02]} 62. Kxd6 {[%clk 0:00:39]}  Kf5 {[%clk 0:00:03]} 63. Kc6 {[%clk 0:00:40]}  Ke5 {[%clk 0:00:03]} 64. d6 {[%clk 0:00:41]}  Ke6 {[%clk 0:00:03]} 65. d7 {[%clk 0:00:42]} 1-0


[Site "https://www.chess.com"]

[Event "Titled Tuesday Blitz August 09 Early 2022"]
[White "Aslanov, Umid"]
[Black "Kaufman, Raymond"]
[WhiteFideId "13412620"]
[BlackFideId "2015056"]
[WhiteElo "1826"]
[BlackElo "2321"]
[Result "0-1"]
[Round "07"]
[TimeControl "180+1"]
[Date "2022.08.09"]
[WhiteClock "0:00:44"]
[BlackClock "0:00:13"]

1. e4 {[%clk 0:03:00]}  e5 {[%clk 0:02:50]} 2. Nf3 {[%clk 0:02:58]}  Nc6 {[%clk 0:02:50]} 3. Bc4 {[%clk 0:02:58]}  Bc5 {[%clk 0:02:49]} 4. c3 {[%clk 0:02:58]}  Nf6 {[%clk 0:02:47]} 5. d3 {[%clk 0:02:58]}  d6 {[%clk 0:02:42]} 6. O-O {[%clk 0:02:58]}  a5 {[%clk 0:02:40]} 7. a4 {[%clk 0:02:57]}  O-O {[%clk 0:02:37]} 8. Nbd2 {[%clk 0:02:57]}  h6 {[%clk 0:02:22]} 9. h3 {[%clk 0:02:57]}  Ba7 {[%clk 0:02:18]} 10. Re1 {[%clk 0:02:56]}  Re8 {[%clk 0:02:17]} 11. Bb3 {[%clk 0:02:55]}  Be6 {[%clk 0:02:15]} 12. Bc2 {[%clk 0:02:56]}  Ne7 {[%clk 0:02:09]} 13. Nf1 {[%clk 0:02:55]}  Ng6 {[%clk 0:02:08]} 14. Ng3 {[%clk 0:02:55]}  Qd7 {[%clk 0:02:05]} 15. Qe2 {[%clk 0:02:50]}  d5 {[%clk 0:01:52]} 16. Kh2 {[%clk 0:02:39]}  Nf4 {[%clk 0:01:40]} 17. Bxf4 {[%clk 0:02:35]}  exf4 {[%clk 0:01:38]} 18. Nf1 {[%clk 0:02:34]}  dxe4 {[%clk 0:01:35]} 19. dxe4 {[%clk 0:02:34]}  Qc6 {[%clk 0:01:14]} 20. Rad1 {[%clk 0:02:31]}  Bc4 {[%clk 0:01:06]} 21. Qd2 {[%clk 0:02:30]}  Nxe4 {[%clk 0:00:59]} 22. Qxf4 {[%clk 0:02:23]}  Nxf2 {[%clk 0:00:53]} 23. Ng3 {[%clk 0:01:49]}  Nxd1 {[%clk 0:00:50]} 24. Rxd1 {[%clk 0:01:50]}  Be3 {[%clk 0:00:47]} 25. Qf5 {[%clk 0:01:49]}  g6 {[%clk 0:00:47]} 26. Qg4 {[%clk 0:01:45]}  Be6 {[%clk 0:00:36]} 27. Qh4 {[%clk 0:01:41]}  Bf2 {[%clk 0:00:27]} 28. Qxh6 {[%clk 0:01:37]}  Bxg3+ {[%clk 0:00:27]} 29. Kxg3 {[%clk 0:01:37]}  Bc4 {[%clk 0:00:18]} 30. Ng5 {[%clk 0:01:36]}  Qf6 {[%clk 0:00:18]} 31. Qh7+ {[%clk 0:01:28]}  Kf8 {[%clk 0:00:18]} 32. Rd4 {[%clk 0:01:13]}  Qxg5+ {[%clk 0:00:16]} 33. Rg4 {[%clk 0:01:13]}  Re3+ {[%clk 0:00:14]} 34. Kf2 {[%clk 0:01:02]}  Re2+ {[%clk 0:00:14]} 35. Kg1 {[%clk 0:01:01]}  Qe3+ {[%clk 0:00:12]} 36. Kh2 {[%clk 0:01:01]}  Qe5+ {[%clk 0:00:12]} 37. Rg3 {[%clk 0:00:59]}  Rxc2 {[%clk 0:00:11]} 38. Qh6+ {[%clk 0:00:57]}  Qg7 {[%clk 0:00:11]} 39. Qf4 {[%clk 0:00:56]}  Rd8 {[%clk 0:00:10]} 40. Qxc7 {[%clk 0:00:55]}  Re8 {[%clk 0:00:10]} 41. Qd6+ {[%clk 0:00:54]}  Kg8 {[%clk 0:00:10]} 42. Qd7 {[%clk 0:00:54]}  Ree2 {[%clk 0:00:09]} 43. Qc8+ {[%clk 0:00:54]}  Qf8 {[%clk 0:00:09]} 44. Qxc4 {[%clk 0:00:55]}  Qd6 {[%clk 0:00:08]} 45. Qc8+ {[%clk 0:00:35]}  Kg7 {[%clk 0:00:08]} 46. Qxb7 {[%clk 0:00:36]}  Rxg2+ {[%clk 0:00:07]} 47. Qxg2 {[%clk 0:00:36]}  Rxg2+ {[%clk 0:00:07]} 48. Kxg2 {[%clk 0:00:37]}  Qd2+ {[%clk 0:00:07]} 49. Kf3 {[%clk 0:00:37]}  Qxb2 {[%clk 0:00:07]} 50. Ke4 {[%clk 0:00:37]}  Qc2+ {[%clk 0:00:08]} 51. Kd5 {[%clk 0:00:37]}  Qxa4 {[%clk 0:00:08]} 52. c4 {[%clk 0:00:38]}  Qd7+ {[%clk 0:00:08]} 53. Kc5 {[%clk 0:00:38]}  Qc7+ {[%clk 0:00:08]} 54. Kb5 {[%clk 0:00:39]}  Qxg3 {[%clk 0:00:09]} 55. c5 {[%clk 0:00:40]}  Qe5 {[%clk 0:00:09]} 56. Kb6 {[%clk 0:00:39]}  a4 {[%clk 0:00:09]} 57. c6 {[%clk 0:00:40]}  a3 {[%clk 0:00:09]} 58. c7 {[%clk 0:00:41]}  Qd6+ {[%clk 0:00:09]} 59. Kb7 {[%clk 0:00:41]}  Qxc7+ {[%clk 0:00:10]} 60. Kxc7 {[%clk 0:00:41]}  a2 {[%clk 0:00:11]} 61. Kd6 {[%clk 0:00:42]}  a1=Q {[%clk 0:00:12]} 62. Kd5 {[%clk 0:00:42]}  Qf6 {[%clk 0:00:13]} 63. Ke4 {[%clk 0:00:43]}  Qf5+ {[%clk 0:00:13]} 64. Ke3 {[%clk 0:00:43]}  Qxh3+ {[%clk 0:00:13]} 65. Kf2 {[%clk 0:00:44]} 0-1


[Site "https://www.chess.com"]